Cogmind - Beta 15 @@@ ROGUE MODE // 2025.07.06 @ 22:03:51 Player: Skysub Result: Destroyed by YC-2Y9(R) with Subdweller Beam Cannon Performance ------------- Evolutions (0) 0 Regions Visited (2) 400 Robots Destroyed (29) 145 Value Destroyed (680) 680 Prototype IDs (0) 0 Alien Tech Used (0) 0 Bonus (0) 0 TOTAL SCORE: 1225 Bonus ------- None Cogmind --------- Core Integrity 0/250 Matter 74/300 Energy 200/200 System Corruption 2% Temperature Cool (9) Movement Treading (160) Location -10/Subcaves Parts ------- > --- POWER (1) -------- Subdweller Power Source > --- PROPULSION (2) --- Spiked Treads Spiked Treads > --- UTILITY (2) ------ Large Storage Unit Structural Scanner > --- WEAPON (2) ------- Subdweller Machine Gun Subdweller Machine Gun > --- INVENTORY (15) --- Subdweller Power Source Subdweller Power Source Compact Wheel Subdweller Monowheel Subdweller Monowheel Improved Heat Sink Subdweller Optics Scrap Shield Medium Laser Light Assault Rifle Light Assault Rifle Subdweller Shrapnel Launcher Mining Laser Makeshift Sword Peak State ------------ > --- POWER ------------ Subdweller Power Source > --- PROPULSION ------- Spiked Treads Spiked Treads > --- UTILITY ---------- Large Storage Unit Structural Scanner > --- WEAPON ----------- Subdweller Machine Gun Subdweller Machine Gun > --- INVENTORY -------- Subdweller Power Source Compact Wheel Subdweller Monowheel Subdweller Monowheel Improved Heat Sink Small Storage Unit Subdweller Optics Scrap Shield Medium Laser Light Assault Rifle Light Assault Rifle Subdweller Shrapnel Launcher Mining Laser [Rating: 14] Favorites ----------- Power Ion Engine Engine Ion Engine Propulsion Light Treads Treads Light Treads Wheel Compact Wheel Utility Structural Scanner Device Structural Scanner Storage Large Storage Unit Weapon Light Assault Rifle Energy Gun Medium Laser Ballistic Gun Light Assault Rifle Launcher Subdweller Shrapnel Launcher Special Weapon Mining Laser Build | -11 -10 -10 ------- Run | Yrd Mat Sub Slots Evolved . | . . . Power . | . . . Propulsion . | . . . Utility . | . . . Weapon . | . . . Parts Attached 20 | 5 5 10 Power 2 | 1 . 1 Engine 2 | 1 . 1 Core . | . . . Reactor . | . . . Propulsion 6 | 2 . 4 Treads 5 | 2 . 3 Leg . | . . . Wheel 1 | . . 1 Hover . | . . . Flight . | . . . Utility 3 | 1 2 . Device 1 | . 1 . Storage 2 | 1 1 . Processor . | . . . Hackware . | . . . Protection . | . . . Artifact . | . . . Weapon 9 | 1 3 5 Energy Gun 2 | 1 1 . Energy Cannon . | . . . Ballistic Gun 5 | . 2 3 Ballistic Cannon . | . . . Launcher 1 | . . 1 Special Weapon 1 | . . 1 Impact Weapon . | . . . Slashing Weapon . | . . . Piercing Weapon . | . . . Special Melee Weapon . | . . . Unidentified Prototypes . | . . . Parts Lost 4 | . . 4 Power 1 | . . 1 Propulsion 2 | . . 2 Utility . | . . . Weapon 1 | . . 1 Highest Loss Streak 1 | . . 1 To Critical Strikes . | . . . Average Backups 8 | . 4 10 Power . | . . . Propulsion 1 | . 1 1 Utility 2 | . 1 2 Weapon 3 | . 1 5 Tool/Special . | . . . Unused Backups 7 | . . 7 Power 1 | . . 1 Propulsion 2 | . . 2 Utility 3 | . . 3 Weapon 1 | . . 1 Tool/Special . | . . . Average Slot Usage (%) 85 | . 91 83 Engine 7 | . 14 4 Treads 21 | . 28 19 Wheel 1 | . . 2 Device 12 | . 9 14 Storage 14 | . 14 14 Energy Gun 4 | . 13 . Ballistic Gun 15 | . 11 16 Launcher 3 | . . 4 Special Weapon 4 | . . 6 Peak Build Rating 14 | 5 7 14 Average Rating 8 | 3 6 9 On Entrance 4 | . 5 7 Naked Turns . | . . . Heaviest Build 34 | 12 29 34 Greatest Support 40 | 40 40 40 Greatest Overweight (x) 1 | 1 . 1 Average Overweight (x) . | . . . Largest Inventory Capacity 15 | 8 15 15 Average Capacity 14 | 7 12 15 Most Carried 15 | 1 7 15 Average Carried 8 | . 4 10 Final Capacity 15 | 8 15 15 Final Carried 15 | 1 7 15 Class Distribution -------------------- 100% | Mutant Dominant Class ---------------- Mutant | -10/Materials Mutant | -10/Subcaves Resources | -11 -10 -10 ----------- Run | Yrd Mat Sub Matter Collected 542 | 188 118 236 Remotely . | . . . Salvage Created 729 | . 377 352 Parts 64 | . 31 33 Haulers Intercepted . | . . . Recyclers Shooed . | . . . Parts Field Recycled . | . . . Retrieved Matter . | . . . Parts Self-Destructed 13 | . . 13 Prevented . | . . . Kills | -11 -10 -10 ------- Run | Yrd Mat Sub Combat Hostiles Destroyed 26 | . 11 15 Guns 22 | . 11 11 AOE 4 | . . 4 Classes Destroyed 5 | . 4 1 Builder 2 | . 2 . Tunneler 1 | . 1 . Swarmer 12 | . 6 6 Grunt 5 | . 5 . Subdweller 9 | . . 9 Best Kill Streak 6 | . 6 3 Combat Bots Only 3 | . 3 3 Max Kills in Single Turn 2 | . 1 2 Gunslinging 1 | . . 1 Exploded 1 | . . 1 Melee . | . . . Uniques/NPCs Destroyed . | . . . Combat | -11 -10 -10 -------- Run | Yrd Mat Sub Hostile Shots Fired 115 | . 59 56 Missed 32 | . 18 14 Hits 83 | . 41 42 Projectile 83 | . 41 42 Damage Taken 1116 | . 387 729 Core 255 | . 54 201 Absorbed by Shields . | . . . Core Remaining (%) 100 | 100 . . Volleys Fired 95 | . 44 51 Largest 2 | . 2 2 Hottest 100 | . 90 100 Shots Fired 146 | . 59 87 Gun 131 | . 59 72 Cannon . | . . . Launcher 7 | . . 7 Special 8 | . . 8 Kinetic 101 | . 22 79 Thermal 45 | . 37 8 Explosive . | . . . Electromagnetic . | . . . Robot Hit Streak 15 | . 7 15 Robot Miss Streak 4 | . 3 4 Penetration Max . | . . . Secondary Targets 4 | . 1 3 Max Gunslinging Chain 1 | . 1 1 Shots Hit Robots 87 | . 38 49 Core Hits 45 | . 22 23 Critical Kills 2 | . . 2 Critical Parts Destroyed . | . . . Critical Strikes 4 | . 2 2 Burn 2 | . 2 . Destroy 2 | . . 2 Melee Attacks . | . . . Impact . | . . . Slashing . | . . . Piercing . | . . . Sneak Attacks . | . . . Combat Hostiles . | . . . Follow-up Attacks . | . . . Damage Inflicted 1542 | . 441 1101 Guns 1071 | . 440 631 Cannons . | . . . Explosions 470 | . . 470 Melee . | . . . Ramming 1 | . 1 . Kinetic 1223 | . 122 1101 Thermal 318 | . 318 . Explosive . | . . . Electromagnetic . | . . . Impact . | . . . Slashing . | . . . Piercing . | . . . Highest Corruption 2 | . 2 2 Average Corruption 2 | . 2 2 Corruption Purged . | . . . Corruption Blocked . | . . . Effects 29 | . 6 23 Message Errors 3 | . . 3 Matter Fused 7 | . 2 5 Heat Flow Errors 3 | . . 3 Energy Discharges 3 | . 2 1 Parts Rejected 1 | . . 1 Data Loss (minor) 7 | . 2 5 Data Loss (major) 2 | . . 2 Misfires 2 | . . 2 Alerts 1 | . . 1 Overload Shots . | . . . Overflow Damage 12 | . . 12 Projectiles . | . . . Explosions 12 | . . 12 Melee . | . . . Knockbacks . | . . . Impact . | . . . Kinetic . | . . . Secondary . | . . . Self-Inflicted Damage 58 | . . 58 Shots 1 | . . 1 Rammed 1 | . 1 . Targets Rammed 1 | . 1 . Kicked . | . . . Crushed . | . . . Highest Temperature 210 | . 210 165 Average Temperature 69 | . 68 82 Received Heat Transfer 162 | . 90 72 Siege Activations . | . . . Martial Activations . | . . . Shielding Activations . | . . . Robots Disrupted . | . . . Combat Hostiles . | . . . Robots Corrupted . | . . . Combat Hostiles . | . . . Parts Fried . | . . . Impact Corruptions . | . . . Robots Melted . | . . . Combat Hostiles . | . . . Parts Melted 1 | . 1 . Heat Transferred 1049 | . 1049 . Parts Sabotaged . | . . . Parts Stolen . | . . . Parts Stripped . | . . . Power Chain Reactions . | . . . Alert | -11 -10 -10 ------- Run | Yrd Mat Sub Maximum Alert Level . | . . . Low Security (%) 100 | 100 100 . Level 1 . | . . . Level 2 . | . . . Level 3 . | . . . Level 4 . | . . . Level 5 . | . . . High Security . | . . . Max Security . | . . . Peak Influence 100 | . 100 . Initial . | . . . Average 41 | . 44 . Influence Increases 508 | . 368 140 Destroy 0b10 Robot/C 340 | . 220 120 Destroy 0b10 Robot/NC 15 | . 15 . Destroy Leader 60 | . 40 20 Successful Hack 18 | . 18 . Select Force Hacks 60 | . 60 . Lose Combat Pursuer 15 | . 15 . Influence Decreases 508 | . 334 174 Entered New Map 17 | . . 17 Time Decay 471 | . 334 137 Lost Part 20 | . . 20 Squads Dispatched 3 | . 3 . Investigation 3 | . 3 . Extermination . | . . . Reinforcement . | . . . Assault . | . . . Garrison . | . . . Intercept . | . . . Searches Triggered . | . . . Construction Impeded . | . . . Haulers Reinforced . | . . . Active Scanning Responses . | . . . Cargo Convoy Interrupts . | . . . Stealth | -11 -10 -10 --------- Run | Yrd Mat Sub Distress Signals . | . . . Communications Jammed . | . . . Distress Signals . | . . . Times Spotted 37 | . 21 16 Peak Tracking Total 5 | . 5 3 Tactical Retreats 1 | . 1 . Traps | -11 -10 -10 ------- Run | Yrd Mat Sub Traps Triggered 2 | . 2 . Indirectly . | . . . Trap Hack Attempts . | . . . Triggered . | . . . Disarmed . | . . . Reprogrammed . | . . . Reused . | . . . Traps Extracted . | . . . Installed . | . . . Triggered . | . . . Machines | -11 -10 -10 ---------- Run | Yrd Mat Sub Machines Disabled . | . . . Max in Single Turn . | . . . Machines Repaired . | . . . Machines Dismantled . | . . . Machines Sabotaged . | . . . Overloaded Fab Kills . | . . . Hacking | -11 -10 -10 --------- Run | Yrd Mat Sub Machines Accessed 8 | . 8 . Terminals 6 | . 6 . Fabricators . | . . . Repair Stations . | . . . Recycling Units 2 | . 2 . Scanalyzers . | . . . Garrison Access . | . . . Total Hacks 19 | . 19 . Successful 16 | . 16 . Failed 3 | . 3 . Catastrophic 1 | . 1 . Database Lockouts . | . . . Manual 17 | . 17 . Terminals 15 | . 15 . Fabricators . | . . . Repair Stations . | . . . Recycling Units 4 | . 4 . Scanalyzers . | . . . Garrison Access . | . . . Terminal Hacks 1 | . 1 . Terminal Index 1 | . 1 . Fabricator Hacks . | . . . Repair Station Hacks . | . . . Recycling Unit Hacks 2 | . 2 . Report Inventory 2 | . 2 . Scanalyzer . | . . . Garrison Access Hacks . | . . . Unauthorized Hacks 13 | . 13 . Terminals 11 | . 11 . Botnet 3 | . 3 . Operators 2 | . 2 . Skim 6 | . 6 . Fabricators . | . . . Repair Stations . | . . . Recycling Units 2 | . 2 . Tunnel 2 | . 2 . Scanalyzers . | . . . Garrison Access . | . . . Data Cores Recovered . | . . . Used . | . . . Hacking Detections 4 | . 4 . Full Trace Events 1 | . 1 . Feedback Events . | . . . Feedback Blocked . | . . . Robot Schematics Acquired . | . . . Robots Built . | . . . Authchips . | . . . Time . | . . . Total Robot Build Rating . | . . . Part Schematics Acquired . | . . . Parts Built . | . . . Authchips . | . . . Time . | . . . Total Part Build Rating . | . . . Parts Repaired . | . . . Time . | . . . Parts Recycled . | . . . Recycled Matter . | . . . Retrieved Matter . | . . . Retrieved Components . | . . . Parts Scanalyzed . | . . . Part Schematics Acquired . | . . . Parts Damaged . | . . . Bothacking | -11 -10 -10 ------------ Run | Yrd Mat Sub Used RIF Installer . | . . . Robots Hacked . | . . . Non-combat . | . . . Combat . | . . . Robot Hacks Applied . | . . . Relay Couplers Released . | . . . Fabnet Peak Effective % . | . . . Robots Rewired . | . . . Allies Hacked . | . . . Hacks Repelled . | . . . Allies | -11 -10 -10 -------- Run | Yrd Mat Sub Total Allies . | . . . Largest Group . | . . . Highest-Rated Group . | . . . Highest-Rated Ally . | . . . Total Orders . | . . . Ally Attacks . | . . . Total Damage . | . . . Kills . | . . . Allies Corrupted . | . . . Allies Melted . | . . . Intel | -11 -10 -10 ------- Run | Yrd Mat Sub Active Infowar (turns) 2437 | . 555 1882 Structural 2437 | . 555 1882 Robot Analysis Total . | . . . Derelict Logs Recovered 3 | . . 3 Drone Launches . | . . . Drone Recoveries . | . . . Exploration | -11 -10 -10 ------------- Run | Yrd Mat Sub Turns Passed 2790 | 66 842 1882 Spaces Moved 1320 | 40 353 927 Core 6 | 6 . . Treads 1112 | 34 353 725 Legs . | . . . Wheels 202 | . . 202 Hover . | . . . Flight . | . . . Fastest Speed 50 | 50 160 115 Average Speed 174 | 146 160 181 Slowest Speed 260 | 160 160 260 Overloaded Moves . | . . . Propulsion Burnouts . | . . . Robots Hopped . | . . . Potential Cave-ins . | . . . Cave-ins Triggered . | . . . Exploration Rate (%) 44 | 3 73 58 Regions Visited 2 Branch Regions 1 Pre-discovered Areas 3 | . 2 1 Known Exits Taken 1 | . 1 . Unknown Exits Taken 1 | 1 . . Scrap Searched 1 | . . 1 Spaces Dug 7 | . . 7 Terrain Destroyed 98 | . . 98 Melee . | . . . Projectile 7 | . . 7 AOE 91 | . . 91 Terrain Rammed . | . . . Walls Destroyed . | . . . Machines Disabled . | . . . Actions | -11 -10 -10 --------- Run | Yrd Mat Sub Total 1645 | 45 573 1027 Wait 186 | . 166 20 Move 1318 | 39 352 927 Hop . | . . . Pick Up 18 | 1 5 12 Fast Attach 8 | 5 2 1 Attach 4 | . . 4 Detach . | . . . Swap 13 | . 3 10 Drop 2 | . . 2 Fire 95 | . 44 51 Melee . | . . . Ram . | . . . Kick . | . . . Crush 1 | . 1 . Escape Stasis . | . . . Rewire . | . . . Trap . | . . . Miscellaneous . | . . . Route ------- -11/Scrapyard -10/Materials (discovered 6 exits: *Mat x3 / *Min x2 / *Sub) -10/Subcaves (discovered 2 exits: [*Mat x2]) History --------- Turn | Location | Event 28 | -11/Scrapyard | Discovered new exit (range 16) 67 | -11/Scrapyard | Entered Materials 311 | -10/Materials | Build established: Mutant 415 | -10/Materials | Discovered new exit (range 11) 570 | -10/Materials | Discovered new exit (range 16) 649 | -10/Materials | Discovered new exit (range 9) 741 | -10/Materials | Identified exit to Mines 741 | -10/Materials | Identified exit to Materials 741 | -10/Materials | Identified exit to Subcaves 779 | -10/Materials | Learned location of 2 exits from Materials 809 | -10/Materials | Learned Storage trap positions 828 | -10/Materials | Loaded intel: 19 trap records 839 | -10/Materials | Learned 2 Mines zone layouts 859 | -10/Materials | Learned Storage security intel 891 | -10/Materials | Learned location of 1 exit from Storage 909 | -10/Materials | Entered Subcaves 910 | -10/Subcaves | Approached by a straggling Scientist 948 | -10/Subcaves | Learned 2 Materials zone layouts 950 | -10/Subcaves | A swath of the cavern ceiling suddenly collapsed 1025 | -10/Subcaves | Shifting Twisted Machinery released Mak. Shrapnel Gun 1090 | -10/Subcaves | Learned Materials stockpile data 1126 | -10/Subcaves | Learned location of Zion (-6) 1208 | -10/Subcaves | Discovered new exit (range 14) 1426 | -10/Subcaves | Core integrity fell below 50% 1953 | -10/Subcaves | Shifting Twisted Machinery released Riot Gun 1958 | -10/Subcaves | Shifting Twisted Machinery released Piercing Trap 2160 | -10/Subcaves | Ambushed by Subdweller buried in earth 2176 | -10/Subcaves | Core integrity fell below 20% 2331 | -10/Subcaves | Discovered new exit (range 10) 2449 | -10/Subcaves | A swath of the cavern ceiling suddenly collapsed 2791 | -10/Subcaves | Destroyed by YC-2Y9(R) with Subdweller Beam Cannon Last Messages --------------- 02314_ Acquired Mak. Sword. 02331_ EXIT=FOUND 02369_ Subatomizers dissect the Sub. Monowheel. 02393_ System corrupted: Heat flow error (+167). 02396_ Subatomizers dissect the Sub. Monowheel. 02421_ 5U-4W8(R) suffers critical hit (Destroy). 02421_ 5U-4W8(R) destroyed. 02429_ Acquired 21 matter. 02449_ 54 Matter crushed. A swath of the cavern ceiling suddenly collapses. 02491_ System corrupted: Component data lost. 02539_ System corrupted: IFF burst signal emitted. 02555_ System corrupted: Component data lost. 02600_ Acquired 15 matter. 02605_ Acquired 11 matter. 02636_ System corrupted: Matter fused (-8). 02767_ WY-HXD(R) destroyed. 02776_ Dropped Sml. Storage Unit. 02777_ System corrupted: Heat flow error (+203). 02778_ Acquired Sub. Power Source. Map ----- +----------------------------------------------------+ | ???????????????????????????????????????????? | | ???????????????????????????????????????????? | | ???????????????????????????????????????????? | | ???????????????????????????????????????????? | | ???????????????????????????????????????????? | | ???????????????????????????????????????????? | | ???????????????????????????????????????????? | | ???????????????????????????????????????????? | | ???????????????????????????????????????????? | | ???????????????????????????????????????????? | | ???????????????????????????????????????????? | | ???????????????????????????????????????????? | | ???????????????#####???????????????????????? | | ??????????????########?????????????????????? | | ??????????????### ###?????????????????????? | | ??????????????## ###????????????????????? | | ??????????????### ####???????????????????? | | ???????????????### #### #????????????????? | | ????????????????### #######??????????????? | | ?????????????????## #####?????????????? | | ????????????????### " ###?????????????? | | ??????????????##### ! " "##?????????????? | | ?????????????##### ="" "###????????????? | | ?????????????### &%" ##????????????? | | ?????????????## R##&" ""???????????? | | ?????????????## @###" ""???????????? | | ?????????????## ## ##""???????????? | | ?????????????## "##" "###????????????? | | ?????????????### """"""""##?????????????? | | ?????????????#### """"""""##?????????????? | | ?????????????#### """##"? # ?????????????? | | ?????????????### "#####?????????????????? | | ?????????????## ######?????????????????? | | ?????????????## ####### ???????????????? | | ?????????????## #### ####???????????????? | | ?????????????## ##???????????????? | | ?????????????##### ###???????????????? | | ?????????????##### ####???????????????? | | ??????????????## # ####????????????????? | | ??????????????## ## ###?????????????????? | | ??????????????## ## ###?????????????????? | | ??????????????## # ####????????????????? | | ??????????????### ###????????????????? | | ??????????????### ##????????????????? | | ??????????????## # # #####?????????????? | | ??????????????####### #####?????????????? | | ??????????????###### " ##?????????????? | | ??????????????#### "###?????????????? | | ?????????????#### ### ####?????????????? | | ?????????????### #### ####?????????????? | +----------------------------------------------------+ Best States ------------- Heat Dissipation 25 Energy Generation 15 Energy Capacity 250 Matter Stores 300 Matter Capacity 300 Sight Range 16 Terrain Scan Density 10 Evasion (%) 40 Recoil Reduction 2 Item Schematics ----------------- None Robot Schematics ------------------ None Fabricated ------------ Nothing Repaired ---------- Nothing Alien Tech Used ----------------- None Achievements -------------- None Challenges ------------ None Game ------ Seed CompositeSalvageTreads Manual? 0 Play Time 00:13:21 Cumulative 140.1 hours Start 2025.07.06 @ 21:53:00 End 2025.07.06 @ 22:03:51 Sessions 1 Manual Loads 0 Difficulty Rogue Special Mode None Game No. 148 Rogue 148 Adventurer 0 Explorer 0 Win Type - Total 3 Types 1/0/0/1/0/0/0/0/0/1 Lore% 63 Gallery% 59 Achievement% 52 Wizard Run 0 Options --------- Layout 1 ASCII 0 Keyboard 1 Movement Numpad Keybinds 0 Fullscreen 1 Font 32/SmallcapsGlow Map View 77x35 Zoom Use 0% Tactical HUD 1 Map Filters NONE Filters NONE Steam 1 RUN: 537cd595-7cc7-4894-a989-62ed5910d4f9